[Event "*** SCC Grand Prix: Titled Tuesday Blitz"]
[Site "Chess.com"]
[Date "2020.06.09"]
[Round "10"]
[White "TERMINATOR_PC"]
[Black "CalinGheorghiu"]
[Result "0-1"]
[WhiteElo "2464"]
[BlackElo "2369"]
[TimeControl "180+1"]
[EndTime "10:59:30 PDT"]
[Termination "CalinGheorghiu won by checkmate"]

1. e4 {[%clk 0:03:00.9]} 1... e6 {[%clk 0:02:55.5]} 2. Nf3 {[%clk 0:02:59.5]}
2... d5 {[%clk 0:02:55.6]} 3. exd5 {[%clk 0:03:00.4]} 3... exd5 {[%clk
0:02:54.8]} 4. d4 {[%clk 0:03:01.3]} 4... Bd6 {[%clk 0:02:43.8]} 5. c4 {[%clk
0:03:01.6]} 5... c6 {[%clk 0:02:42.6]} 6. Nc3 {[%clk 0:03:02]} 6... Nf6 {[%clk
0:02:37]} 7. cxd5 {[%clk 0:02:54.2]} 7... cxd5 {[%clk 0:02:35.6]} 8. Bd3 {[%clk
0:02:39.1]} 8... h6 {[%clk 0:02:34]} 9. O-O {[%clk 0:02:37.3]} 9... O-O {[%clk
0:02:33.9]} 10. h3 {[%clk 0:02:38]} 10... Qb6 {[%clk 0:02:25.2]} 11. Bc2 {[%clk
0:02:16.9]} 11... Nc6 {[%clk 0:02:22.1]} 12. a3 {[%clk 0:02:16.6]} 12... Be6
{[%clk 0:02:18.3]} 13. Qd3 {[%clk 0:02:13.5]} 13... Rfe8 {[%clk 0:01:59.4]} 14.
b4 {[%clk 0:02:10.2]} 14... a5 {[%clk 0:01:55.7]} 15. b5 {[%clk 0:02:10]} 15...
Ne7 {[%clk 0:01:53.6]} 16. Na4 {[%clk 0:02:00.1]} 16... Qc7 {[%clk 0:01:42.5]}
17. Bb3 {[%clk 0:01:42.6]} 17... Bf5 {[%clk 0:01:33.5]} 18. Qd1 {[%clk 0:01:35]}
18... Rec8 {[%clk 0:01:08.8]} 19. Bd2 {[%clk 0:01:30.2]} 19... Bc2 {[%clk
0:01:08]} 20. Bxc2 {[%clk 0:01:22.5]} 20... Qxc2 {[%clk 0:01:08.9]} 21. Nb6
{[%clk 0:01:21.4]} 21... Qxd1 {[%clk 0:00:48.1]} 22. Rfxd1 {[%clk 0:01:20.7]}
22... Ne4 {[%clk 0:00:48.3]} 23. a4 {[%clk 0:01:06.1]} 23... Rab8 {[%clk
0:00:44.8]} 24. Nxc8 {[%clk 0:01:04.9]} 24... Rxc8 {[%clk 0:00:45.7]} 25. Bxa5
{[%clk 0:01:03.7]} 25... Rc2 {[%clk 0:00:44.3]} 26. Be1 {[%clk 0:01:00.8]} 26...
Nf5 {[%clk 0:00:42.4]} 27. a5 {[%clk 0:01:00]} 27... Rb2 {[%clk 0:00:29.7]} 28.
a6 {[%clk 0:00:59.4]} 28... bxa6 {[%clk 0:00:28.8]} 29. bxa6 {[%clk 0:01:00.3]}
29... Rb8 {[%clk 0:00:28.4]} 30. a7 {[%clk 0:00:57.1]} 30... Ra8 {[%clk
0:00:28.8]} 31. Rdb1 {[%clk 0:00:57.8]} 31... Kh7 {[%clk 0:00:28.2]} 32. Rb7
{[%clk 0:00:54.9]} 32... Kg6 {[%clk 0:00:25.5]} 33. g4 {[%clk 0:00:53.9]} 33...
Ne7 {[%clk 0:00:24.7]} 34. Ne5+ {[%clk 0:00:53.1]} 34... Bxe5 {[%clk 0:00:21.8]}
35. Rxe7 {[%clk 0:00:52.8]} 35... Bxd4 {[%clk 0:00:21]} 36. Ra6+ {[%clk
0:00:53.2]} 36... f6 {[%clk 0:00:20.5]} 37. Kg2 {[%clk 0:00:46.4]} 37... Nc5
{[%clk 0:00:19.7]} 38. Rd6 {[%clk 0:00:42.5]} 38... Nd3 {[%clk 0:00:17.3]} 39.
Rxd5 {[%clk 0:00:40.3]} 39... Nf4+ {[%clk 0:00:17.2]} 40. Kf3 {[%clk 0:00:38]}
40... Nxd5 {[%clk 0:00:18.1]} 41. Rd7 {[%clk 0:00:36.2]} 41... Bc3 {[%clk
0:00:18.2]} 42. Bxc3 {[%clk 0:00:25]} 42... Nxc3 {[%clk 0:00:17.9]} 43. Rb7
{[%clk 0:00:23.5]} 43... Na4 {[%clk 0:00:17.2]} 44. h4 {[%clk 0:00:19.6]} 44...
Nc5 {[%clk 0:00:17.6]} 45. Rc7 {[%clk 0:00:18.3]} 45... Ne6 {[%clk 0:00:17.7]}
46. Rb7 {[%clk 0:00:17.3]} 46... Nd4+ {[%clk 0:00:16.2]} 47. Kf4 {[%clk
0:00:12.9]} 47... Nc6 {[%clk 0:00:17.1]} 48. h5+ {[%clk 0:00:13.3]} 48... Kh7
{[%clk 0:00:17]} 49. Rc7 {[%clk 0:00:12.8]} 49... Nxa7 {[%clk 0:00:16.6]} 50.
Kg3 {[%clk 0:00:08.1]} 50... Nb5 {[%clk 0:00:16.6]} 51. Rc5 {[%clk 0:00:08.1]}
51... Ra3+ {[%clk 0:00:16.7]} 52. f3 {[%clk 0:00:08.7]} 52... Nd6 {[%clk
0:00:17.1]} 53. Kf4 {[%clk 0:00:07.8]} 53... Nf7 {[%clk 0:00:17.2]} 54. Kf5
{[%clk 0:00:03.7]} 54... Rxf3+ {[%clk 0:00:16.4]} 55. Ke4 {[%clk 0:00:03.8]}
55... Rf1 {[%clk 0:00:14.4]} 56. Rc7 {[%clk 0:00:03.6]} 56... Ng5+ {[%clk
0:00:14.3]} 57. Ke3 {[%clk 0:00:04.1]} 57... Rg1 {[%clk 0:00:12.7]} 58. Kf4
{[%clk 0:00:03.6]} 58... Rd1 {[%clk 0:00:12.7]} 59. Rc4 {[%clk 0:00:03.2]} 59...
Kg8 {[%clk 0:00:12.7]} 60. Kf5 {[%clk 0:00:03.4]} 60... Kh7 {[%clk 0:00:10]} 61.
Kf4 {[%clk 0:00:02.7]} 61... Rf1+ {[%clk 0:00:10.1]} 62. Kg3 {[%clk 0:00:02.6]}
62... Kg8 {[%clk 0:00:10.3]} 63. Rc8+ {[%clk 0:00:01.8]} 63... Kf7 {[%clk
0:00:10.7]} 64. Rc7+ {[%clk 0:00:02.7]} 64... Kg8 {[%clk 0:00:10.4]} 65. Rc8+
{[%clk 0:00:03.1]} 65... Kh7 {[%clk 0:00:10.6]} 66. Rc4 {[%clk 0:00:03.8]} 66...
Rf3+ {[%clk 0:00:10.5]} 67. Kg2 {[%clk 0:00:04.2]} 67... Ra3 {[%clk 0:00:10.3]}
68. Kf2 {[%clk 0:00:04]} 68... Ne6 {[%clk 0:00:10.3]} 69. Kg2 {[%clk 0:00:03.3]}
69... Rd3 {[%clk 0:00:10.7]} 70. Rc6 {[%clk 0:00:02.3]} 70... Nf4+ {[%clk
0:00:09.4]} 71. Kf2 {[%clk 0:00:03]} 71... Nh3+ {[%clk 0:00:08.6]} 72. Kg2
{[%clk 0:00:03.3]} 72... Ng5 {[%clk 0:00:08.7]} 73. Rc4 {[%clk 0:00:03.9]} 73...
Re3 {[%clk 0:00:07.8]} 74. Kf2 {[%clk 0:00:03.2]} 74... Re4 {[%clk 0:00:07.9]}
75. Rc5 {[%clk 0:00:03]} 75... Rxg4 {[%clk 0:00:08]} 76. Ke3 {[%clk 0:00:03.9]}
76... Rh4 {[%clk 0:00:08.1]} 77. Kf2 {[%clk 0:00:04]} 77... Rxh5 {[%clk
0:00:08.5]} 78. Kg3 {[%clk 0:00:04]} 78... Rh3+ {[%clk 0:00:08.7]} 79. Kg4
{[%clk 0:00:04.4]} 79... Ra3 {[%clk 0:00:09.1]} 80. Rc4 {[%clk 0:00:04.3]} 80...
Kg6 {[%clk 0:00:09]} 81. Kh4 {[%clk 0:00:04.5]} 81... h5 {[%clk 0:00:08.9]} 82.
Rc5 {[%clk 0:00:03.7]} 82... Rh3# {[%clk 0:00:09.3]} 0-1

[Event "*** SCC Grand Prix: Titled Tuesday Blitz"]
[Site "Chess.com"]
[Date "2020.06.09"]
[Round "10"]
[White "davidkalashian"]
[Black "Fh2411"]
[Result "1-0"]
[WhiteElo "2596"]
[BlackElo "2446"]
[TimeControl "180+1"]
[EndTime "10:59:40 PDT"]
[Termination "davidkalashian won by resignation"]

1. e4 {[%clk 0:03:00.9]} 1... c5 {[%clk 0:02:59.7]} 2. Nc3 {[%clk 0:03:00.4]}
2... e6 {[%clk 0:03:00.6]} 3. Nf3 {[%clk 0:02:59.4]} 3... a6 {[%clk 0:02:59.9]}
4. d4 {[%clk 0:02:58.3]} 4... cxd4 {[%clk 0:03:00.8]} 5. Nxd4 {[%clk 0:02:58.8]}
5... Qc7 {[%clk 0:03:01.5]} 6. Qf3 {[%clk 0:02:58.7]} 6... b5 {[%clk 0:02:48.7]}
7. Qg3 {[%clk 0:02:55.8]} 7... Qxg3 {[%clk 0:02:38.3]} 8. hxg3 {[%clk
0:02:56.7]} 8... Bb7 {[%clk 0:02:38.5]} 9. f3 {[%clk 0:02:55.6]} 9... Bb4 {[%clk
0:02:31.7]} 10. Bd2 {[%clk 0:02:52.7]} 10... Ne7 {[%clk 0:02:32]} 11. g4 {[%clk
0:02:50.2]} 11... Nbc6 {[%clk 0:02:24.8]} 12. Nb3 {[%clk 0:02:47.5]} 12... Ne5
{[%clk 0:02:17.6]} 13. a3 {[%clk 0:02:43.2]} 13... Bd6 {[%clk 0:02:16.4]} 14.
O-O-O {[%clk 0:02:41]} 14... Bc7 {[%clk 0:02:10.6]} 15. Be3 {[%clk 0:02:32.9]}
15... O-O-O {[%clk 0:02:06]} 16. g5 {[%clk 0:02:28]} 16... d5 {[%clk 0:01:56.3]}
17. Bc5 {[%clk 0:02:26.1]} 17... N5g6 {[%clk 0:01:47.6]} 18. Bd3 {[%clk
0:02:14.1]} 18... Bf4+ {[%clk 0:01:45.6]} 19. Kb1 {[%clk 0:02:12.9]} 19... Bxg5
{[%clk 0:01:46.1]} 20. Na5 {[%clk 0:02:10.4]} 20... d4 {[%clk 0:01:33.9]} 21.
Nxb7 {[%clk 0:02:02]} 21... Kxb7 {[%clk 0:01:32.7]} 22. Ne2 {[%clk 0:02:02.5]}
22... e5 {[%clk 0:01:32.3]} 23. g3 {[%clk 0:01:56.9]} 23... Be3 {[%clk
0:01:28.6]} 24. Rdf1 {[%clk 0:01:53.4]} 24... Nc6 {[%clk 0:01:23.9]} 25. f4
{[%clk 0:01:51.7]} 25... f6 {[%clk 0:01:24.2]} 26. Rh5 {[%clk 0:01:39.9]} 26...
h6 {[%clk 0:01:11.9]} 27. f5 {[%clk 0:01:38.3]} 27... Nf8 {[%clk 0:01:11.4]} 28.
Bxf8 {[%clk 0:01:32.5]} 28... Rhxf8 {[%clk 0:01:10.7]} 29. g4 {[%clk 0:01:33.4]}
29... Rc8 {[%clk 0:01:06.9]} 30. Rh2 {[%clk 0:01:32.4]} 30... Rf7 {[%clk
0:01:06.3]} 31. Ng3 {[%clk 0:01:30.5]} 31... Rfc7 {[%clk 0:01:06.1]} 32. Nh5
{[%clk 0:01:30.3]} 32... Na5 {[%clk 0:01:03.6]} 33. Re2 {[%clk 0:01:24.7]} 33...
Bg5 {[%clk 0:01:02.3]} 34. Rfe1 {[%clk 0:01:21.5]} 34... Nc4 {[%clk 0:01:00.3]}
35. Bxc4 {[%clk 0:01:16.5]} 35... bxc4 {[%clk 0:01:01.2]} 36. Rd1 {[%clk
0:01:12.6]} 36... Rd8 {[%clk 0:00:57.7]} 37. Ka2 {[%clk 0:01:10.4]} 37... d3
{[%clk 0:00:52.2]} 38. cxd3 {[%clk 0:01:10]} 38... cxd3 {[%clk 0:00:48.9]} 39.
Rg2 {[%clk 0:01:10.2]} 39... d2 {[%clk 0:00:44.5]} 40. Rgg1 {[%clk 0:00:54.1]}
40... Rc1 {[%clk 0:00:42.7]} 41. Ng3 {[%clk 0:00:37.6]} 41... Rd6 {[%clk
0:00:20.2]} 42. Ne2 {[%clk 0:00:33.3]} 42... Rc4 {[%clk 0:00:20.3]} 43. Nc3
{[%clk 0:00:32.4]} 43... Rb6 {[%clk 0:00:16.8]} 44. Rg2 {[%clk 0:00:30]} 44...
Rd4 {[%clk 0:00:16.6]} 45. Re2 {[%clk 0:00:28.6]} 45... Rd3 {[%clk 0:00:16.1]}
46. Nd5 {[%clk 0:00:25.3]} 46... Rc6 {[%clk 0:00:14.9]} 47. Nc3 {[%clk
0:00:20.5]} 47... Rb6 {[%clk 0:00:13.7]} 48. Rg2 {[%clk 0:00:17.6]} 48... Rc6
{[%clk 0:00:10.7]} 49. Kb1 {[%clk 0:00:14.5]} 49... Rd4 {[%clk 0:00:07.6]} 50.
Kc2 {[%clk 0:00:12.4]} 50... Rcc4 {[%clk 0:00:08.2]} 51. Re2 {[%clk 0:00:11.5]}
51... Kc6 {[%clk 0:00:07.9]} 52. Rg2 {[%clk 0:00:11.1]} 52... a5 {[%clk
0:00:08.3]} 53. Re2 {[%clk 0:00:11.2]} 53... a4 {[%clk 0:00:08.8]} 54. Rg2
{[%clk 0:00:11.7]} 54... Kc5 {[%clk 0:00:09.3]} 55. Re2 {[%clk 0:00:12]} 55...
Kb6 {[%clk 0:00:09.5]} 56. Rg2 {[%clk 0:00:12.4]} 56... Ka5 {[%clk 0:00:10.1]}
57. Re2 {[%clk 0:00:12.9]} 57... Rc6 {[%clk 0:00:10.4]} 58. Rg2 {[%clk
0:00:12.7]} 58... Rb6 {[%clk 0:00:10.9]} 59. Re2 {[%clk 0:00:12.6]} 59... Rb8
{[%clk 0:00:11.2]} 60. Rg2 {[%clk 0:00:11.8]} 60... Rd7 {[%clk 0:00:11.5]} 61.
Kb1 {[%clk 0:00:10.2]} 61... Rdb7 {[%clk 0:00:11.5]} 62. Rgxd2 {[%clk
0:00:10.4]} 62... Bxd2 {[%clk 0:00:10.8]} 63. Rxd2 {[%clk 0:00:11.3]} 63... Rb3
{[%clk 0:00:11]} 64. Kc1 {[%clk 0:00:10.1]} 64... R3b6 {[%clk 0:00:09.7]} 65.
Rd5+ {[%clk 0:00:09]} 65... Ka6 {[%clk 0:00:09.4]} 66. Nxa4 {[%clk 0:00:09.4]}
66... Rc6+ {[%clk 0:00:09.9]} 67. Nc3 {[%clk 0:00:09.8]} 67... Rbc8 {[%clk
0:00:10.2]} 68. Kc2 {[%clk 0:00:09.8]} 68... R8c7 {[%clk 0:00:11.1]} 69. Rd8
{[%clk 0:00:09.1]} 69... Rc4 {[%clk 0:00:11]} 70. Kd3 {[%clk 0:00:08.8]} 70...
R4c6 {[%clk 0:00:10.4]} 71. Nd5 {[%clk 0:00:08.4]} 71... Rb7 {[%clk 0:00:10.9]}
72. Nb4+ {[%clk 0:00:08.1]} 72... Rxb4 {[%clk 0:00:10.4]} 73. axb4 {[%clk
0:00:09]} 73... Kb5 {[%clk 0:00:11.3]} 74. Rb8+ {[%clk 0:00:08.2]} 74... Ka4
{[%clk 0:00:11]} 75. Rb7 {[%clk 0:00:08.6]} 75... Kb3 {[%clk 0:00:10.2]} 76.
Rxg7 {[%clk 0:00:08.2]} 76... Rd6+ {[%clk 0:00:09.8]} 77. Ke3 {[%clk 0:00:07.7]}
77... Kxb4 {[%clk 0:00:10.3]} 78. Rg6 {[%clk 0:00:08.2]} 78... Kc4 {[%clk
0:00:09.7]} 79. Rxh6 {[%clk 0:00:08.6]} 79... Rd3+ {[%clk 0:00:09.8]} 80. Ke2
{[%clk 0:00:09.2]} 80... Kd4 {[%clk 0:00:10.6]} 81. Rxf6 {[%clk 0:00:09.1]}
81... Kxe4 {[%clk 0:00:11.4]} 82. g5 {[%clk 0:00:09.7]} 82... Rb3 {[%clk
0:00:11.5]} 83. g6 {[%clk 0:00:09.7]} 83... Rxb2+ {[%clk 0:00:12]} 84. Kd1
{[%clk 0:00:10.6]} 84... Ke3 {[%clk 0:00:11.3]} 85. g7 {[%clk 0:00:10.1]} 85...
Rd2+ {[%clk 0:00:11.9]} 86. Kc1 {[%clk 0:00:09.3]} 86... Rg2 {[%clk 0:00:10.6]}
87. Rg6 {[%clk 0:00:09.4]} 1-0

[Event "*** SCC Grand Prix: Titled Tuesday Blitz"]
[Site "Chess.com"]
[Date "2020.06.09"]
[Round "10"]
[White "Indianlad"]
[Black "obliviate12"]
[Result "0-1"]
[WhiteElo "2974"]
[BlackElo "2834"]
[TimeControl "180+1"]
[EndTime "10:59:47 PDT"]
[Termination "obliviate12 won by resignation"]

1. Nf3 {[%clk 0:03:00.9]} 1... Nf6 {[%clk 0:02:59.8]} 2. c4 {[%clk 0:03:00.4]}
2... e6 {[%clk 0:02:59]} 3. Nc3 {[%clk 0:02:58]} 3... d5 {[%clk 0:02:52.8]} 4.
d4 {[%clk 0:02:57.9]} 4... Bb4 {[%clk 0:02:41.8]} 5. Bg5 {[%clk 0:02:57.8]} 5...
h6 {[%clk 0:02:40.4]} 6. Bxf6 {[%clk 0:02:57.6]} 6... Qxf6 {[%clk 0:02:41.3]} 7.
e3 {[%clk 0:02:58.2]} 7... O-O {[%clk 0:02:40.2]} 8. Qb3 {[%clk 0:02:58.2]} 8...
c5 {[%clk 0:02:36.3]} 9. cxd5 {[%clk 0:02:58.4]} 9... exd5 {[%clk 0:02:34.5]}
10. dxc5 {[%clk 0:02:58.8]} 10... Bxc3+ {[%clk 0:02:33.7]} 11. Qxc3 {[%clk
0:02:59.5]} 11... Qxc3+ {[%clk 0:02:33.8]} 12. bxc3 {[%clk 0:03:00.4]} 12... Be6
{[%clk 0:02:27.1]} 13. Rb1 {[%clk 0:02:56.9]} 13... Nd7 {[%clk 0:02:25.6]} 14.
Nd4 {[%clk 0:02:10.1]} 14... Nxc5 {[%clk 0:02:24.7]} 15. c4 {[%clk 0:02:10.3]}
15... Rac8 {[%clk 0:02:09.3]} 16. Nxe6 {[%clk 0:02:04.5]} 16... fxe6 {[%clk
0:02:10.2]} 17. f3 {[%clk 0:01:34.3]} 17... Rfd8 {[%clk 0:02:09.5]} 18. cxd5
{[%clk 0:01:33]} 18... exd5 {[%clk 0:02:09.4]} 19. Rd1 {[%clk 0:01:21.2]} 19...
Na4 {[%clk 0:01:54.8]} 20. Bd3 {[%clk 0:01:21.3]} 20... Nb2 {[%clk 0:01:52.5]}
21. Bf5 {[%clk 0:01:16.4]} 21... Nxd1 {[%clk 0:01:45.3]} 22. Bxc8 {[%clk
0:01:16.3]} 22... Nxe3 {[%clk 0:01:43.8]} 23. Kf2 {[%clk 0:01:16.5]} 23... Rxc8
{[%clk 0:01:37.9]} 24. Kxe3 {[%clk 0:01:16.6]} 24... Rc2 {[%clk 0:01:38.8]} 25.
a4 {[%clk 0:01:11.6]} 25... Rxg2 {[%clk 0:01:34.4]} 26. Rb1 {[%clk 0:01:06.6]}
26... b6 {[%clk 0:01:32.7]} 27. a5 {[%clk 0:01:07.1]} 27... bxa5 {[%clk
0:01:20.2]} 28. Rb5 {[%clk 0:01:06.3]} 28... Rg5 {[%clk 0:00:24.5]} 29. Rb7
{[%clk 0:01:06.5]} 29... Rh5 {[%clk 0:00:23.5]} 30. Rxa7 {[%clk 0:01:06.1]}
30... Kh7 {[%clk 0:00:23.5]} 31. Kf4 {[%clk 0:00:57.8]} 31... Rxh2 {[%clk
0:00:19.6]} 32. Rxa5 {[%clk 0:00:58.3]} 32... Rh5 {[%clk 0:00:19.2]} 33. Ra7
{[%clk 0:00:56.3]} 33... Rg5 {[%clk 0:00:18.8]} 34. Rd7 {[%clk 0:00:56.8]} 34...
Kg6 {[%clk 0:00:18.6]} 35. Rd6+ {[%clk 0:00:57.4]} 35... Kf7 {[%clk 0:00:18.9]}
36. Ra6 {[%clk 0:00:56.3]} 36... Ke7 {[%clk 0:00:18.5]} 37. Ke3 {[%clk
0:00:52.2]} 37... Kf7 {[%clk 0:00:16.8]} 38. Kf4 {[%clk 0:00:47.8]} 38... Rg6
{[%clk 0:00:15.4]} 39. Ra7+ {[%clk 0:00:47.3]} 39... Kg8 {[%clk 0:00:15.3]} 40.
Rd7 {[%clk 0:00:43.7]} 40... Rg5 {[%clk 0:00:15.1]} 41. Ke3 {[%clk 0:00:43.6]}
41... Kh7 {[%clk 0:00:14.3]} 42. Kf4 {[%clk 0:00:29.5]} 42... Kg6 {[%clk
0:00:13.9]} 43. Rd6+ {[%clk 0:00:29.7]} 43... Kh5 {[%clk 0:00:13.9]} 44. Ra6
{[%clk 0:00:30]} 44... Rg6 {[%clk 0:00:11.3]} 45. Ra7 {[%clk 0:00:25.7]} 45...
Rf6+ {[%clk 0:00:09.2]} 46. Kg3 {[%clk 0:00:26.1]} 46... g5 {[%clk 0:00:08.7]}
47. Rd7 {[%clk 0:00:25.1]} 47... Rf5 {[%clk 0:00:08.6]} 48. Rd6 {[%clk
0:00:25.6]} 48... Re5 {[%clk 0:00:09]} 49. Kf2 {[%clk 0:00:24.5]} 49... Rf5
{[%clk 0:00:05.3]} 50. Kg2 {[%clk 0:00:25.1]} 50... Re5 {[%clk 0:00:05.4]} 51.
Kg3 {[%clk 0:00:24.9]} 51... Rf5 {[%clk 0:00:04.4]} 52. Kg2 {[%clk 0:00:18.5]}
52... g4 {[%clk 0:00:04.2]} 53. fxg4+ {[%clk 0:00:18.6]} 53... Kxg4 {[%clk
0:00:05.1]} 54. Rxh6 {[%clk 0:00:17.3]} 54... Kf4 {[%clk 0:00:06]} 55. Re6
{[%clk 0:00:14.8]} 55... Re5 {[%clk 0:00:05.9]} 56. Rh6 {[%clk 0:00:13.4]} 56...
Ke3 {[%clk 0:00:05.8]} 57. Kf1 {[%clk 0:00:11.8]} 57... Kd2 {[%clk 0:00:04.9]}
58. Rh2+ {[%clk 0:00:10.8]} 58... Kd3 {[%clk 0:00:03.8]} 59. Rh3+ {[%clk
0:00:08.8]} 59... Re3 {[%clk 0:00:03.7]} 60. Rh8 {[%clk 0:00:09.2]} 60... d4
{[%clk 0:00:03.7]} 61. Ra8 {[%clk 0:00:09.9]} 61... Kc2 {[%clk 0:00:02.8]} 62.
Kf2 {[%clk 0:00:10]} 62... Re5 {[%clk 0:00:02.1]} 63. Ra2+ {[%clk 0:00:07.9]}
63... Kb3 {[%clk 0:00:02.2]} 64. Ra7 {[%clk 0:00:07.9]} 64... Kc3 {[%clk
0:00:02.4]} 65. Rc7+ {[%clk 0:00:08]} 65... Kd2 {[%clk 0:00:02.3]} 66. Ra7
{[%clk 0:00:08.8]} 66... d3 {[%clk 0:00:03.2]} 67. Kf3 {[%clk 0:00:09.2]} 67...
Kc3 {[%clk 0:00:04.1]} 68. Rc7+ {[%clk 0:00:07.8]} 68... Kd2 {[%clk 0:00:04.2]}
69. Ra7 {[%clk 0:00:07.9]} 69... Re3+ {[%clk 0:00:04.6]} 70. Kf2 {[%clk
0:00:07.6]} 70... Re8 {[%clk 0:00:05.5]} 71. Ra2+ {[%clk 0:00:07.5]} 71... Kc3
{[%clk 0:00:05.9]} 72. Ra3+ {[%clk 0:00:08.1]} 72... Kc2 {[%clk 0:00:06.4]} 73.
Ra2+ {[%clk 0:00:08.7]} 73... Kb3 {[%clk 0:00:06.8]} 74. Ra7 {[%clk 0:00:07.9]}
74... d2 {[%clk 0:00:06.8]} 75. Rb7+ {[%clk 0:00:08.4]} 75... Kc2 {[%clk
0:00:07.7]} 76. Rc7+ {[%clk 0:00:08.8]} 76... Kd1 {[%clk 0:00:08.1]} 77. Ra7
{[%clk 0:00:09.4]} 77... Rf8+ {[%clk 0:00:07.6]} 78. Ke3 {[%clk 0:00:09.3]}
78... Ke1 {[%clk 0:00:08]} 79. Rh7 {[%clk 0:00:09.7]} 79... Re8+ {[%clk
0:00:08.1]} 0-1

[Event "*** SCC Grand Prix: Titled Tuesday Blitz"]
[Site "Chess.com"]
[Date "2020.06.09"]
[Round "10"]
[White "KuzubovYuriy"]
[Black "Jospem"]
[Result "0-1"]
[WhiteElo "2778"]
[BlackElo "2880"]
[TimeControl "180+1"]
[EndTime "10:59:47 PDT"]
[Termination "Jospem won on time"]

1. d4 {[%clk 0:03:00.9]} 1... Nf6 {[%clk 0:02:59.6]} 2. c4 {[%clk 0:03:01.5]}
2... e6 {[%clk 0:03:00.2]} 3. Nf3 {[%clk 0:03:01.2]} 3... Bb4+ {[%clk
0:03:00.8]} 4. Bd2 {[%clk 0:03:01.1]} 4... Qe7 {[%clk 0:03:01.3]} 5. Nc3 {[%clk
0:02:58.6]} 5... b6 {[%clk 0:02:57.9]} 6. g3 {[%clk 0:02:56.6]} 6... Bb7 {[%clk
0:02:57.9]} 7. Bg2 {[%clk 0:02:56.7]} 7... O-O {[%clk 0:02:58.5]} 8. O-O {[%clk
0:02:56.8]} 8... d6 {[%clk 0:02:56.4]} 9. Rc1 {[%clk 0:02:50.6]} 9... Nbd7
{[%clk 0:02:55.8]} 10. d5 {[%clk 0:02:35.6]} 10... e5 {[%clk 0:02:52.4]} 11. Nh4
{[%clk 0:02:32.7]} 11... Bxc3 {[%clk 0:02:22.3]} 12. Bxc3 {[%clk 0:02:31.3]}
12... Bc8 {[%clk 0:02:22.3]} 13. b4 {[%clk 0:02:23.3]} 13... a5 {[%clk
0:02:19.6]} 14. a3 {[%clk 0:02:23.2]} 14... axb4 {[%clk 0:02:20.5]} 15. axb4
{[%clk 0:02:24.1]} 15... Qd8 {[%clk 0:02:12.6]} 16. e4 {[%clk 0:02:22.1]} 16...
Re8 {[%clk 0:02:11.6]} 17. Nf5 {[%clk 0:02:18.1]} 17... Nf8 {[%clk 0:02:10.9]}
18. Ne3 {[%clk 0:02:18.1]} 18... Ng6 {[%clk 0:02:09.7]} 19. Ra1 {[%clk
0:02:13.2]} 19... Bd7 {[%clk 0:02:08.5]} 20. Qc2 {[%clk 0:02:10.4]} 20... h5
{[%clk 0:02:06.1]} 21. h4 {[%clk 0:02:06.6]} 21... Qe7 {[%clk 0:02:01.7]} 22.
Rxa8 {[%clk 0:02:04.8]} 22... Rxa8 {[%clk 0:02:01.1]} 23. Ra1 {[%clk 0:02:05.4]}
23... Qe8 {[%clk 0:02:01.7]} 24. Qb2 {[%clk 0:02:01.7]} 24... Qb8 {[%clk
0:01:54.7]} 25. Rxa8 {[%clk 0:02:01.4]} 25... Qxa8 {[%clk 0:01:55.6]} 26. Qa1
{[%clk 0:02:01.2]} 26... Qb7 {[%clk 0:01:54]} 27. f3 {[%clk 0:01:55.8]} 27...
Kh7 {[%clk 0:01:52.3]} 28. Bf1 {[%clk 0:01:55]} 28... Qb8 {[%clk 0:01:38.5]} 29.
Bd3 {[%clk 0:01:49.2]} 29... Kg8 {[%clk 0:01:38.2]} 30. Bd2 {[%clk 0:01:47]}
30... Ne7 {[%clk 0:01:35.4]} 31. Kf2 {[%clk 0:01:35.8]} 31... Ng6 {[%clk
0:01:32.5]} 32. Nd1 {[%clk 0:01:32.2]} 32... Be8 {[%clk 0:01:28.5]} 33. Be3
{[%clk 0:01:29.6]} 33... Qc8 {[%clk 0:01:28.4]} 34. Kg2 {[%clk 0:01:25.4]} 34...
Qb8 {[%clk 0:01:28.5]} 35. Nc3 {[%clk 0:01:19.2]} 35... Bd7 {[%clk 0:01:28.5]}
36. c5 {[%clk 0:01:09.4]} 36... bxc5 {[%clk 0:01:28.3]} 37. bxc5 {[%clk
0:01:09.4]} 37... dxc5 {[%clk 0:01:25.3]} 38. Bxc5 {[%clk 0:01:07.6]} 38... c6
{[%clk 0:01:22.6]} 39. d6 {[%clk 0:00:56.2]} 39... Nf8 {[%clk 0:01:22.2]} 40.
Ne2 {[%clk 0:00:48.1]} 40... Qb3 {[%clk 0:01:16.6]} 41. Qc3 {[%clk 0:00:41.3]}
41... Qe6 {[%clk 0:01:06.1]} 42. Ng1 {[%clk 0:00:35.2]} 42... Qe8 {[%clk
0:01:06]} 43. Bc4 {[%clk 0:00:32.4]} 43... Be6 {[%clk 0:01:01.4]} 44. Be2 {[%clk
0:00:26.9]} 44... N8d7 {[%clk 0:00:57.3]} 45. Be3 {[%clk 0:00:26.1]} 45... Qc8
{[%clk 0:00:53.1]} 46. Nh3 {[%clk 0:00:17.3]} 46... Bxh3+ {[%clk 0:00:39.5]} 47.
Kxh3 {[%clk 0:00:18.2]} 47... Ne8 {[%clk 0:00:40.4]} 48. Bb5 {[%clk 0:00:15.6]}
48... Nb8+ {[%clk 0:00:25]} 49. Kg2 {[%clk 0:00:15]} 49... Nxd6 {[%clk
0:00:25.6]} 50. Be2 {[%clk 0:00:13.5]} 50... Nd7 {[%clk 0:00:23.7]} 51. Qd3
{[%clk 0:00:12.2]} 51... Ne8 {[%clk 0:00:22.5]} 52. f4 {[%clk 0:00:12]} 52...
Nef6 {[%clk 0:00:21.6]} 53. fxe5 {[%clk 0:00:09]} 53... Nxe5 {[%clk 0:00:21.4]}
54. Qd4 {[%clk 0:00:09.2]} 54... Qe6 {[%clk 0:00:19.5]} 55. Bf4 {[%clk
0:00:08.5]} 55... Ng6 {[%clk 0:00:19.1]} 56. e5 {[%clk 0:00:07.6]} 56... Nd5
{[%clk 0:00:14.5]} 57. Bxh5 {[%clk 0:00:06.1]} 57... Ngxf4+ {[%clk 0:00:14.9]}
58. gxf4 {[%clk 0:00:06]} 58... Qf5 {[%clk 0:00:15.6]} 59. Bf3 {[%clk
0:00:05.2]} 59... Nxf4+ {[%clk 0:00:15.3]} 60. Kg3 {[%clk 0:00:05.4]} 60... Ng6
{[%clk 0:00:05.5]} 61. Bxc6 {[%clk 0:00:04.6]} 61... Nxe5 {[%clk 0:00:05.1]} 62.
Be4 {[%clk 0:00:04.2]} 62... Qg4+ {[%clk 0:00:05]} 63. Kf2 {[%clk 0:00:04.2]}
63... Qxh4+ {[%clk 0:00:05.5]} 64. Kg2 {[%clk 0:00:03.8]} 64... Qg4+ {[%clk
0:00:05.2]} 65. Kf2 {[%clk 0:00:04.1]} 65... Qh4+ {[%clk 0:00:04.7]} 66. Kg2
{[%clk 0:00:04.1]} 66... Ng4 {[%clk 0:00:04.4]} 67. Bf3 {[%clk 0:00:02.2]} 67...
Qh2+ {[%clk 0:00:04]} 68. Kf1 {[%clk 0:00:02.6]} 68... Nf6 {[%clk 0:00:03.6]}
69. Qd8+ {[%clk 0:00:02.2]} 69... Kh7 {[%clk 0:00:04.2]} 70. Qe7 {[%clk
0:00:02.6]} 70... Qh3+ {[%clk 0:00:03.5]} 71. Kf2 {[%clk 0:00:02.6]} 71... Qe6
{[%clk 0:00:04.4]} 72. Qxe6 {[%clk 0:00:02.5]} 72... fxe6 {[%clk 0:00:05.3]} 73.
Kg3 {[%clk 0:00:02.7]} 73... Kg6 {[%clk 0:00:06.2]} 74. Kf4 {[%clk 0:00:02.8]}
74... Nd7 {[%clk 0:00:06.6]} 75. Bc6 {[%clk 0:00:01.5]} 75... Nf8 {[%clk
0:00:05.2]} 0-1